Cogmind - Beta 16.1 @@@ ROGUE MODE // 2026.05.01 @ 23:32:35 Player: JovialTruth Result: Destroyed by as-73547 with Assembled Rifle Performance ------------- Evolutions (0) 0 Regions Visited (2) 400 Robots Destroyed (9) 45 Value Destroyed (196) 196 Prototype IDs (0) 0 Alien Tech Used (0) 0 Bonus (0) 0 TOTAL SCORE: 641 Bonus ------- None Cogmind --------- Core Integrity 0/250 Matter 78/300 Energy 125/125 System Corruption 1% Temperature Cool (0) Movement Core (100) Ox1 Location -10/Mines Parts ------- > --- POWER (1) -------- Light Ion Engine > --- PROPULSION (2) --- (None) > --- UTILITY (2) ------ (None) > --- WEAPON (2) ------- Mining Laser > --- INVENTORY (5) ---- Light Ion Engine Light Ion Engine Aluminum Leg Aluminum Leg Small Storage Unit Peak State ------------ > --- POWER ------------ Ion Engine > --- PROPULSION ------- Aluminum Leg Aluminum Leg > --- UTILITY ---------- Small Storage Unit Seismic Detector > --- WEAPON ----------- EM Pulse Gun EM Pulse Gun > --- INVENTORY -------- Light Ion Engine Small Laser [Rating: 7] Favorites ----------- Power Light Ion Engine Engine Light Ion Engine Propulsion Aluminum Leg Leg Aluminum Leg Flight Unit Flight Unit Utility Small Storage Unit Device Seismic Detector Storage Small Storage Unit Weapon EM Pulse Gun Energy Gun EM Pulse Gun Ballistic Gun Light Assault Rifle Launcher Rocket Launcher Special Weapon Mining Laser Build | -11 -10 -10 ------- Run | Yrd Mat Min Slots Evolved . | . . . Power . | . . . Propulsion . | . . . Utility . | . . . Weapon . | . . . Parts Attached 17 | 6 5 6 Power 5 | 1 1 3 Engine 5 | 1 1 3 Core . | . . . Reactor . | . . . Propulsion 4 | 2 2 . Treads . | . . . Leg 2 | 2 . . Wheel . | . . . Hover . | . . . Flight 2 | . 2 . Utility 2 | 1 1 . Device 1 | . 1 . Storage 1 | 1 . . Processor . | . . . Hackware . | . . . Protection . | . . . Artifact . | . . . Weapon 6 | 2 1 3 Energy Gun 2 | 2 . . Energy Cannon . | . . . Ballistic Gun 2 | . 1 1 Ballistic Cannon . | . . . Launcher 1 | . . 1 Special Weapon 1 | . . 1 Impact Weapon . | . . . Slashing Weapon . | . . . Piercing Weapon . | . . . Special Melee Weapon . | . . . Unidentified Prototypes . | . . . Parts Lost 7 | . 1 6 Power 1 | . . 1 Propulsion 2 | . . 2 Utility 1 | . 1 . Weapon 3 | . . 3 Highest Loss Streak 2 | . 1 2 To Critical Strikes . | . . . Average Backups 3 | . 2 4 Power 1 | . 1 1 Propulsion 1 | . . 2 Utility . | . . 1 Weapon . | . . . Tool/Special . | . . . Unused Backups 2 | . 1 1 Power 1 | . . 1 Propulsion . | . . . Utility . | . . . Weapon 1 | . 1 . Tool/Special . | . . . Average Slot Usage (%) 65 | . 93 46 Engine 13 | . 14 13 Leg 10 | . 25 . Flight 6 | . 2 8 Device 3 | . 8 . Storage 5 | . 13 . Energy Gun 12 | . 23 3 Ballistic Gun 7 | . 4 10 Launcher 6 | . . 10 Peak Build Rating 7 | 6 7 6 Average Rating 4 | 4 6 4 On Entrance 3 | . 6 5 Avg Prop Armor Cover (%) . | . . . Naked Turns . | . . . Heaviest Build 15 | 14 15 8 Greatest Support 20 | 20 20 8 Greatest Overweight (x) 3 | 1 3 2 Average Overweight (x) . | . . . Largest Inventory Capacity 8 | 8 8 5 Average Capacity 6 | 7 7 5 Most Carried 5 | 2 5 5 Average Carried 3 | . 2 4 Final Capacity 8 | 8 5 5 Final Carried 5 | 2 4 5 Class Distribution -------------------- 81% | Mutant 18% | Scavenger-Mutant Dominant Class ---------------- Mutant | -10/Materials Mutant | -10/Mines Resources | -11 -10 -10 ----------- Run | Yrd Mat Min Matter Collected 327 | 194 120 13 Remotely . | . . . Salvage Created 238 | . 203 35 Parts 14 | . 11 3 Haulers Intercepted . | . . . Recyclers Shooed . | . . . Parts Field Recycled . | . . . Retrieved Matter . | . . . Parts Self-Destructed . | . . . Prevented . | . . . Parts Restored . | . . . Kills | -11 -10 -10 ------- Run | Yrd Mat Min Combat Hostiles Destroyed 17 | . 6 11 Guns 6 | . 6 . AOE 11 | . . 11 Classes Destroyed 3 | . 2 1 Swarmer 5 | . 2 3 Grunt 4 | . 4 . Assembled 8 | . . 8 Best Kill Streak 7 | . 3 7 Combat Bots Only 7 | . 3 7 Max Kills in Single Turn 2 | . 1 2 Gunslinging . | . . . Exploded 2 | . . 2 Melee . | . . . Uniques/NPCs Destroyed . | . . . Combat | -11 -10 -10 -------- Run | Yrd Mat Min Hostile Shots Fired 76 | . 42 34 Missed 18 | . 6 12 Hits 58 | . 36 22 Melee 1 | . . 1 Projectile 57 | . 36 21 Damage Taken 813 | . 391 422 Core 258 | . 68 190 Absorbed by Shields . | . . . Core Remaining (%) 100 | 100 . . Volleys Fired 34 | . 18 16 Largest 2 | . 2 2 Hottest 80 | . 80 53 Shots Fired 63 | . 36 27 Gun 47 | . 36 11 Cannon . | . . . Launcher 16 | . . 16 Special . | . . . Kinetic 20 | . 9 11 Thermal . | . . . Explosive 16 | . . 16 Electromagnetic 27 | . 27 . Robot Hit Streak 9 | . 9 3 Robot Miss Streak 4 | . 3 4 Penetration Max . | . . . Secondary Targets 1 | . 1 . Max Gunslinging Chain 1 | . 1 . Shots Hit Robots 31 | . 22 9 Core Hits 30 | . 9 21 Critical Kills . | . . . Critical Parts Destroyed . | . . . Critical Strikes . | . . . Melee Attacks . | . . . Impact . | . . . Slashing . | . . . Piercing . | . . . Sneak Attacks . | . . . Combat Hostiles . | . . . Follow-up Attacks . | . . . Damage Inflicted 943 | . 279 664 Guns 263 | . 237 26 Cannons . | . . . Explosions 680 | . 42 638 Melee . | . . . Ramming . | . . . Kinetic 85 | . 59 26 Thermal 42 | . 42 . Explosive 638 | . . 638 Electromagnetic 178 | . 178 . Impact . | . . . Slashing . | . . . Piercing . | . . . Highest Corruption 1 | . 1 1 Average Corruption 1 | . 1 1 Corruption Purged . | . . . Corruption Blocked . | . . . Effects 3 | . 2 1 Matter Fused 1 | . 1 . Heat Flow Errors 1 | . 1 . Energy Discharges 1 | . . 1 Overload Shots . | . . . Overflow Damage 58 | . 1 57 Projectiles . | . . . Explosions 58 | . 1 57 Melee . | . . . Knockbacks . | . . . Impact . | . . . Kinetic . | . . . Secondary . | . . . Self-Inflicted Damage 216 | . 24 192 Shots 7 | . 1 6 Rammed . | . . . Targets Rammed . | . . . Kicked . | . . . Crushed . | . . . Highest Temperature 248 | . 248 30 Average Temperature 101 | . 133 11 Received Heat Transfer 170 | . 150 20 Siege Activations . | . . . Martial Activations . | . . . Shielding Activations . | . . . Robots Disrupted 1 | . 1 . Combat Hostiles 1 | . 1 . Robots Corrupted . | . . . Combat Hostiles . | . . . Parts Fried . | . . . Impact Corruptions . | . . . Robots Melted . | . . . Combat Hostiles . | . . . Parts Melted . | . . . Heat Transferred 50 | . 50 . Parts Sabotaged . | . . . Parts Stolen . | . . . Parts Stripped . | . . . Power Chain Reactions 1 | . 1 . Alert | -11 -10 -10 ------- Run | Yrd Mat Min Maximum Alert Level . | . . . Low Security (%) 100 | 100 100 100 Level 1 . | . . . Level 2 . | . . . Level 3 . | . . . Level 4 . | . . . Level 5 . | . . . High Security . | . . . Max Security . | . . . Peak Influence 112 | . 71 112 Initial 19 | . . 19 Average 37 | . 31 50 Influence Increases 375 | . 151 224 Destroy 0b10 Robot/C 180 | . 120 60 Destroy Leader 20 | . 10 10 Disable Machine 15 | . 15 . Destroy Structure 100 | . 6 94 Lose Combat Pursuer 60 | . . 60 Influence Decreases 371 | . 100 271 Entered New Map 32 | . . 32 Time Decay 269 | . 90 179 Lost Part 70 | . 10 60 Squads Dispatched 1 | . 1 . Investigation 1 | . 1 . Extermination . | . . . Reinforcement . | . . . Assault . | . . . Garrison . | . . . Intercept . | . . . Searches Triggered . | . . . Construction Impeded . | . . . Haulers Reinforced . | . . . Active Scanning Responses . | . . . Cargo Convoy Interrupts . | . . . Stealth | -11 -10 -10 --------- Run | Yrd Mat Min Distress Signals 4 | . 3 1 Communications Jammed . | . . . Distress Signals . | . . . Times Spotted 32 | . 9 23 Peak Tracking Total 14 | . 4 14 Tactical Retreats 4 | . . 4 Traps | -11 -10 -10 ------- Run | Yrd Mat Min Traps Triggered . | . . . Indirectly . | . . . Trap Hack Attempts . | . . . Triggered . | . . . Disarmed . | . . . Reprogrammed . | . . . Reused . | . . . Traps Extracted . | . . . Installed . | . . . Triggered . | . . . Machines | -11 -10 -10 ---------- Run | Yrd Mat Min Machines Disabled 1 | . 1 . Max in Single Turn 1 | . 1 . Machines Repaired . | . . . Machines Dismantled . | . . . Machines Sabotaged . | . . . Overloaded Fab Kills . | . . . Hacking | -11 -10 -10 --------- Run | Yrd Mat Min Machines Accessed 2 | . 2 . Terminals 1 | . 1 . Fabricators . | . . . Repair Stations . | . . . Recycling Units 1 | . 1 . Scanalyzers . | . . . Garrison Access . | . . . Total Hacks 5 | . 5 . Successful 2 | . 2 . Failed 3 | . 3 . Catastrophic 1 | . 1 . Database Lockouts . | . . . Manual . | . . . Terminals 2 | . 2 . Fabricators . | . . . Repair Stations . | . . . Recycling Units 3 | . 3 . Scanalyzers . | . . . Garrison Access . | . . . Terminal Hacks . | . . . Fabricator Hacks . | . . . Repair Station Hacks . | . . . Recycling Unit Hacks 2 | . 2 . Report Inventory 1 | . 1 . Retrieve Components 1 | . 1 . Scanalyzer . | . . . Garrison Access Hacks . | . . . Unauthorized Hacks . | . . . Terminals . | . . . Fabricators . | . . . Repair Stations . | . . . Recycling Units . | . . . Scanalyzers . | . . . Garrison Access . | . . . Data Cores Recovered . | . . . Used . | . . . Hacking Detections 2 | . 2 . Full Trace Events 1 | . 1 . Feedback Events 1 | . 1 . Corruption 1 | . 1 . Feedback Blocked . | . . . Robot Schematics Acquired . | . . . Robots Built . | . . . Authchips . | . . . Time . | . . . Total Robot Build Rating . | . . . Part Schematics Acquired . | . . . Parts Built . | . . . Authchips . | . . . Time . | . . . Total Part Build Rating . | . . . Part Studies Acquired . | . . . Parts Repaired . | . . . Time . | . . . Parts Recycled . | . . . Recycled Matter . | . . . Retrieved Matter . | . . . Retrieved Components 5 | . 5 . Parts Scanalyzed . | . . . Part Schematics Acquired . | . . . Parts Damaged . | . . . Bothacking | -11 -10 -10 ------------ Run | Yrd Mat Min Used RIF Installer . | . . . Robots Hacked . | . . . Non-combat . | . . . Combat . | . . . Robot Hacks Applied . | . . . Relay Couplers Released . | . . . Fabnet Peak Effective % . | . . . Robots Rewired . | . . . Allies Hacked . | . . . Hacks Repelled . | . . . Allies | -11 -10 -10 -------- Run | Yrd Mat Min Total Allies . | . . . Largest Group . | . . . Highest-Rated Group . | . . . Highest-Rated Ally . | . . . Total Orders . | . . . Ally Attacks . | . . . Total Damage . | . . . Kills . | . . . Allies Corrupted . | . . . Allies Melted . | . . . Intel | -11 -10 -10 ------- Run | Yrd Mat Min Active Infowar (turns) 147 | . 147 . Seismic 147 | . 147 . Robot Analysis Total . | . . . Derelict Logs Recovered 1 | . . 1 Drone Launches . | . . . Drone Recoveries . | . . . Exploration | -11 -10 -10 ------------- Run | Yrd Mat Min Turns Passed 708 | 91 250 367 Spaces Moved 634 | 69 167 398 Core 155 | 9 . 146 Treads . | . . . Legs 199 | 60 139 . Wheels . | . . . Hover . | . . . Flight 280 | . 28 252 Fastest Speed 37 | 50 37 37 Average Speed 90 | 116 110 78 Slowest Speed 290 | 120 290 150 Overloaded Moves . | . . . Propulsion Burnouts . | . . . Robots Hopped . | . . . Potential Cave-ins 3 | . . 3 Cave-ins Triggered . | . . . Exploration Rate (%) 24 | 4 23 47 Regions Visited 2 Branch Regions 1 Pre-discovered Areas . | . . . Known Exits Taken . | . . . Unknown Exits Taken 2 | 1 1 . Scrap Searched . | . . . Spaces Dug . | . . . Terrain Destroyed 151 | . 5 146 Melee . | . . . Projectile . | . . . AOE 151 | . 5 146 Terrain Rammed . | . . . Walls Destroyed . | . . . Machines Disabled . | . . . Actions | -11 -10 -10 --------- Run | Yrd Mat Min Total 699 | 76 197 426 Wait 6 | . 3 3 Move 632 | 68 166 398 Hop . | . . . Pick Up 4 | 2 2 . Fast Attach 10 | 6 1 3 Attach . | . . . Detach 1 | . 1 . Swap 8 | . 4 4 Drop 4 | . 2 2 Fire 34 | . 18 16 Melee . | . . . Ram . | . . . Kick . | . . . Crush . | . . . Escape Stasis . | . . . Rewire . | . . . Trap . | . . . Miscellaneous . | . . . Route ------- -11/Scrapyard -10/Materials -10/Mines History --------- Turn | Location | Event 9 | -11/Scrapyard | Discovered new exit (range 13) 92 | -11/Scrapyard | Entered Materials 110 | -10/Materials | Discovered new exit (range 5) 301 | -10/Materials | Build established: Mutant 342 | -10/Materials | Entered Mines 346 | -10/Mines | Learned Materials emergency access door positions 354 | -10/Mines | Met a Derelict bent on vengeance 359 | -10/Mines | Assembled infested the area 364 | -10/Mines | Assisted by a Guerilla fighting off Assembled 431 | -10/Mines | Received a Rocket Launcher from a helpful Derelict 576 | -10/Mines | Core integrity fell below 50% 599 | -10/Mines | Core integrity fell below 20% 617 | -10/Mines | Destroyed 7 combat bots 709 | -10/Mines | Destroyed by as-73547 with Assembled Rifle Last Messages --------------- 00578_ Lgt. Ion Engine destroyed. 00578_ as-09844 destroyed. 00581_ Acquired 2 matter. 00582_ The unstable cave ceiling collapses. 00584_ Acquired Lgt. Ion Engine. 00586_ Destroyed Asb. Hover Unit. 00586_ as-11101 destroyed. 00590_ The unstable cave ceiling collapses. 00596_ as-29572 destroyed. 00596_ as-89236 destroyed. 00606_ The unstable cave ceiling collapses. 00630_ Dropped Lgt. Ion Engine. 00651_ Acquired Lgt. Assault Rifle. 00681_ System corrupted: Energy discharge (-45). 00682_ as-16657 destroyed. 00682_ Lgt. Assault Rifle destroyed. 00682_ Destroyed Lgt. Assault Rifle. 00688_ Acquired 10 matter. 00705_ Rocket Launcher destroyed. 00706_ Acquired Mining Laser. Map ----- +----------------------------------------------------+ | ??????????????????### # #???????? | | ????????????????????# # # # # """ #???????? | | #???????????????????# # # # """ #???????? | | #???????????????????# ######### """ #???????? | | #???????????????????# ###???????# #???????? | | ##??????????????????# #?####????##### ####????? ?? | | ##???????????##????# ### ##???????# #???????# ? | | ##?????????## ##### ## #???????# #???????# ? | | #?????????# [ # #?####### #???????# ? | | #?????????## #?## #??????## ? | | ##???######?###### #### # ####??????? ? | | ##??## ##?????### #### #???????? ? | | #### ##??????### #????? """ ? | | ########## ### # ##??????""" # | | # ## ## ### ???????"" | | ## ## # ???? | | ?## ## # # ####???? | | ??#### ### ###???????? | | ?????# ### # ?????????# | | ??????## ##?# ####????????# | | ???????# # # #??## ######????## | | ??????# #### #??## ## ###?## | | ??????# ##??# #?## % ## ### | | ??????## ## #???# #? = # | | ???????## ### ##### ## =%%% % | | ????????######?# @!a ![ a | | ???????????????####### =%%!aa | | ?????????????????????##### =a% # # # ## | | ??????????????????????????###%=! #??## ###### #? | | ????????????????????????? !###???####????# #? | | ????????????????????????##### #?????????????# #? | | ????????????????????????????# #?????????????# #? | | ???????????????????????????? ?????????????# #? | | ???????????????????????????? ?????????????# #? | | ??????????????????????????? ????????????# #? | | ??????????????????????????? ????????????# #? | | ??????????????????????????# ????????????# #? | | ??????????????????????????## ???????????# #? | | ???????????????????????????# ???????????# #? | | ???????????????????????????# #???????????# #? | | ??????????????????????????? ##???????????# $?? | | ??????????????????????????? #????????????# ?? | | ??????????????????????????? ?????????????# ?? | | ???????????????????????????? ?????????????# ?? | | ?????????????????????????????????????????????? ?? | | ?????????????????????????????????????????????? ?? | | ?????????????????????????????????????????????? ?? | | ?????????????????????????????????????????????????? | | ?????????????????????????????????????????????????? | | ?????????????????????????????????????????????????? | +----------------------------------------------------+ Best States ------------- Heat Dissipation 25 Energy Generation 10 Energy Capacity 250 Matter Stores 300 Matter Capacity 300 Sight Range 16 Terrain Scan Density 10 Evasion (%) 62 Item Schematics ----------------- None Robot Schematics ------------------ None Fabricated ------------ Nothing Repaired ---------- Nothing Studied --------- None Alien Tech Used ----------------- None Achievements -------------- Slippery One Challenges ------------ None Game ------ Seed PowerDiametricProtomatter Manual? 0 Play Time 00:11:22 Cumulative 10.4 hours Start 2026.05.01 @ 23:22:58 End 2026.05.01 @ 23:32:35 Sessions 1 Manual Loads 0 Difficulty Rogue Special Mode None Game No. 15 Rogue 15 Adventurer 0 Explorer 0 Win Type - Total 0 Types 0/0/0/0/0/0/0/0/0/0 Lore% 3 Gallery% 9 Achievement% 11 Wizard Run 0 Options --------- Layout 0 ASCII 1 Keyboard 1 Movement Vi Keybinds 0 Fullscreen 1 Font 36/X11++ Map View 76x50 Zoom Use 0% Tactical HUD 1 Map Filters NONE Filters NONE Steam 1 RUN: 763e9406-d8d0-47e9-b821-c07591b0a8c4